fUSD/lending_fUSD_20240205
["ID","MTS","AMOUNT","RATE_DAILY","PERIOD"]
[313338041,1707168658493,-739.41,0.00052054,31]
[313338042,1707168658503,-500.0,0.00052055,30]
[313338043,1707168658512,-300.0,0.0005207,7]
[313338044,1707168658522,-157.33149857,0.00052146,62]
[313338045,1707168658531,-967.03941394,0.0005224,4]
[313338046,1707168658540,-4066.5130815,0.000523,7]
[313338047,1707168658550,-550.0,0.00052328,7]
[313338048,1707168658560,-150.0,0.000524,40]
[313338049,1707168658569,-154.0,0.000524,120]
[313338050,1707168658578,-5000.0,0.0005248,120]
[313338051,1707168658587,-250000.0,0.000525,120]
[313338052,1707168658596,-3592.0,0.000525,120]
[313338053,1707168658605,-744.93044909,0.000525,20]
[313338054,1707168658615,-490.0,0.000525,30]
[313338055,1707168658625,-566.0,0.000525,30]
[313338056,1707168658634,-450.0,0.000525,15]
[313338057,1707168658644,-500.0,0.00052553,14]
[313338058,1707168658654,-550.0,0.00052602,7]
[313338059,1707168658663,-735.56,0.00052602,7]
[313338060,1707168658673,-517.51,0.00052602,31]
[313338061,1707168658682,-508.82,0.00052602,31]
[313338062,1707168658693,-593.78,0.00052602,31]
[313338063,1707168658703,-520.99,0.00052602,31]
[313338064,1707168658711,-1047.06,0.00052602,31]
[313338065,1707168658721,-739.41,0.00052602,31]
[313338066,1707168658733,-537.868909,0.0005265,14]
[313338067,1707168658744,-423.955,0.00052739,120]
[313338068,1707168658754,-212.1330998,0.000528,120]
[313338069,1707168658763,-974.0552306,0.000528,120]
[313338070,1707168658773,-251.0,0.00052822,28]
[313338071,1707168658782,-550.0,0.00052876,7]
[313338072,1707168658791,-526.14582221,0.00052899,14]
[313338073,1707168658800,-16989.12823367,0.000529,30]
[313338074,1707168658809,-4234.53989456,0.000529,30]
[313338075,1707168658818,-5355.59211629,0.000529,30]
[313338076,1707168658827,-5357.59992245,0.000529,30]
[313338077,1707168658837,-5654.40672385,0.000529,30]
[313338078,1707168658847,-5820.14300811,0.000529,30]
[313338079,1707168658856,-4725.89784617,0.000529,30]
[313338080,1707168658865,-6857.57186819,0.000529,30]
[313338081,1707168658874,-78142.73337236,0.000529,30]
[313338082,1707168658883,-149999.0,0.000529,30]
[313338083,1707168658892,-149999.0,0.000529,30]
[313338084,1707168658902,-149999.0,0.000529,30]
[313338085,1707168658911,-50003.0,0.000529,30]
[313338086,1707168658920,-204.30333,0.000529,40]
[313338087,1707168658929,-881.2432266,0.000529,27]
[313338088,1707168658938,-10000.0,0.0005298,14]
[313338089,1707168658948,-200.0,0.00052987,82]
[313338090,1707168658957,-200.0,0.00052987,89]
[313338091,1707168658966,-100000.0,0.00053,43]
[313338092,1707168658976,-1010.54542254,0.00053,120]
[313338093,1707168658985,-1000.0,0.00053,120]
[313338094,1707168658994,-1000.0,0.00053,120]
[313338095,1707168659005,-369.0,0.00053,120]
[313338096,1707168659014,-300.0,0.00053,53]
[313338097,1707168659023,-344.0,0.00053,120]
[313338098,1707168659032,-500.0,0.00053,7]
[313338099,1707168659041,-227.45,0.00053,10]
[313338100,1707168659050,-9723.33610947,0.00053,14]
[313338101,1707168659059,-565.37841646,0.00053,2]
[313338102,1707168659069,-1285.95,0.00053,120]
[313338103,1707168659078,-5000.0,0.00053,60]
[313338104,1707168659088,-49900.0,0.00053,20]
[313338105,1707168659097,-18108.0,0.00053,120]
[313338106,1707168659107,-1646.9832,0.00053,60]
[313338107,1707168659116,-345.93,0.00053,120]
[313338108,1707168659125,-215.59071439,0.00053,120]
[313338109,1707168659134,-500000.0,0.00053,120]
[313338110,1707168659257,-250.0,0.00053,120]
[313338111,1707168659268,-256895.2254,0.00053,60]
[313338112,1707168659278,-1000000.0,0.00053,45]
[313338113,1707168659287,-320.68955378,0.00053,120]
[313338114,1707168659296,-25448.0,0.00053,120]
[313338115,1707168659307,-13861.01746078,0.00053,60]
[313338116,1707168659316,-75290.89570122,0.00053,30]
[313338117,1707168659325,-1597.86,0.00053,30]
[313338118,1707168659333,-300.0,0.00053,31]
[313338119,1707168659344,-150.0,0.00053,31]
[313338120,1707168659354,-157.33149857,0.00053146,67]
[313338121,1707168659364,-550.0,0.0005315,7]
[313338122,1707168659373,-735.56,0.0005315,7]
[313338123,1707168659382,-517.51,0.0005315,31]
[313338124,1707168659392,-508.82,0.0005315,31]
[313338125,1707168659402,-593.78,0.0005315,31]
[313338126,1707168659413,-520.99,0.0005315,31]
[313338127,1707168659423,-1047.06,0.0005315,31]
[313338128,1707168659433,-739.41,0.0005315,31]
[313338129,1707168659443,-500.0,0.00053176,14]
[313338130,1707168659454,-154.0,0.000532,120]
[313338131,1707168659463,-500.0,0.000533,6]
[313338132,1707168659473,-438.40919991,0.0005331,2]
[313338133,1707168659482,-155.27237286,0.0005333,120]
[313338134,1707168659491,-155.27237286,0.0005333,120]
[313338135,1707168659500,-155.27237286,0.0005333,120]
[313338136,1707168659509,-155.27237286,0.0005333,120]
[313338137,1707168659520,-155.27237286,0.0005333,120]
[313338138,1707168659529,-155.27237286,0.0005333,120]
[313338139,1707168659540,-155.27237286,0.0005333,120]
[313338140,1707168659550,-155.27237286,0.0005333,120]
[313338141,1707168659559,-1400.0,0.000534,120]
[313338142,1707168659568,-1000.0,0.000534,2]
[313338143,1707168659578,-562.25317115,0.000534,2]
[313338144,1707168659587,-550.0,0.00053424,7]
[313338145,1707168659597,-1000.0,0.00053424,20]
[313338146,1707168659606,-1000.0,0.00053424,20]
[313338147,1707168659616,-1000.0,0.00053424,20]
[313338148,1707168659625,-1000.0,0.00053424,20]
[313338149,1707168659635,-1000.0,0.00053424,20]
[313338150,1707168659645,-1085.48476431,0.00053424,20]
[313338151,1707168659656,-635.9325,0.00053424,120]
[313338152,1707168659665,-17484.0,0.000535,120]
[313338153,1707168659674,-152.0,0.00053506,4]
[313338154,1707168659683,-32918.87949954,0.00053555,14]
[313338155,1707168659694,-400.08171651,0.000536,50]
[313338156,1707168659704,-151.15186373,0.00053601,2]
[313338157,1707168659714,-550.0,0.00053698,7]
[313338158,1707168659723,-735.56188133,0.00053698,7]
[313338159,1707168659733,-517.5509061,0.00053698,31]
[313338160,1707168659743,-508.84150283,0.00053698,31]
[313338161,1707168659752,-593.94537741,0.00053698,31]
[313338162,1707168659761,-521.04115666,0.00053698,31]
[313338163,1707168659771,-1047.20935383,0.00053698,31]
[313338164,1707168659780,-739.60895498,0.00053698,31]
[313338165,1707168659790,-499500.00000056,0.000537,30]
[313338166,1707168659799,-1000.0,0.000537,2]
[313338167,1707168659808,-450.0,0.0005374,15]
[313338168,1707168659819,-500.0,0.00053798,14]
[313338169,1707168659828,-251.0,0.00053858,28]
[313338170,1707168659838,-10000.0,0.0005389,14]
[313338171,1707168659847,-1062.86412483,0.000539,110]
[313338172,1707168659856,-153.3732562,0.000539,59]
[313338173,1707168659865,-881.2432266,0.000539,30]
[313338174,1707168659875,-550.0,0.00053972,7]
[313338175,1707168659884,-200.0,0.00053987,85]
[313338176,1707168659894,-200.0,0.00053987,92]
[313338177,1707168659904,-6572.1577398,0.00053995,45]
[313338178,1707168659913,-255.33094611,0.00053998,60]
[313338179,1707168659923,-100000.0,0.00054,44]
[313338180,1707168659932,-1000.0,0.00054,120]
[313338181,1707168659942,-324.78293161,0.00054,90]
[313338182,1707168659951,-510.3269421,0.00054,120]
[313338183,1707168659961,-196.47882959,0.00054,90]
[313338184,1707168659971,-300.0,0.00054,54]
[313338185,1707168659980,-307660.07,0.00054,90]
[313338186,1707168659989,-10000.0,0.00054,120]
[313338187,1707168659998,-1000.0,0.00054,30]
[313338188,1707168660007,-358.40335565,0.00054,2]
[313338189,1707168660016,-5000.0,0.00054,60]
[313338190,1707168660025,-281722.15865256,0.00054,120]
[313338191,1707168660034,-10000.0,0.00054,20]
[313338192,1707168660043,-59233.07613909,0.00054,120]
[313338193,1707168660053,-4854.86882812,0.00054,20]
[313338194,1707168660062,-480.84031883,0.00054,120]
[313338195,1707168660072,-390.72,0.00054,120]
[313338196,1707168660081,-250.0,0.00054,120]
[313338197,1707168660091,-2117.9604557,0.00054,14]
[313338198,1707168660100,-10000.0,0.00054,20]
[313338199,1707168660108,-1000000.0,0.00054,60]
[313338200,1707168660118,-10000.0,0.00054,20]
[313338201,1707168660127,-10000.0,0.00054,20]
[313338202,1707168660136,-300.0,0.00054,32]
[313338203,1707168660145,-150.0,0.00054,32]
[313338204,1707168660154,-17484.0,0.000541,120]
[313338205,1707168660163,-154.0,0.000541,120]
[313338206,1707168660173,-847.91,0.00054109,120]
[313338207,1707168660182,-588.28571,0.00054199,20]
[313338208,1707168660192,-550.0,0.00054246,7]
[313338209,1707168660202,-1000.0,0.000543,120]
[313338210,1707168660210,-500.506,0.000543,120]
[313338211,1707168660220,-20167.59700386,0.000543,30]
[313338212,1707168660235,-425.17312364,0.00054348,120]
[313338213,1707168660244,-153.51,0.00054362,2]
[313338214,1707168660253,-292.88679822,0.00054388,60]
[313338215,1707168660262,-500.0,0.00054421,14]
[313338216,1707168660272,-15000.0,0.0005444,15]
[313338217,1707168660282,-692.613849,0.00054478,120]
[313338218,1707168660291,-172.924974,0.00054478,120]
[313338219,1707168660301,-278.662249,0.00054478,120]
[313338220,1707168660311,-224.3519936,0.0005449,120]
[313338221,1707168660322,-150.0,0.00054493,120]
[313338222,1707168660331,-150.0,0.00054493,120]
[313338223,1707168660340,-150.0,0.00054493,120]
[313338224,1707168660348,-150.0,0.00054493,120]
[313338225,1707168660357,-150.0,0.00054493,120]
[313338226,1707168660368,-1000.0,0.000545,120]
[313338227,1707168660381,-1000.0,0.000545,120]
[313338228,1707168660423,-550.0,0.0005452,7]
[313338229,1707168660432,-572.04145015,0.0005456,120]
[313338230,1707168660443,-3921.26378925,0.000546,60]
[313338231,1707168660452,-206.0,0.0005464,47]
[313338232,1707168660461,-13468.96979708,0.000547,120]
[313338233,1707168660470,-150.74639681,0.0005475,40]
[313338234,1707168660480,-198.97727388,0.00054794,2]
[313338235,1707168660489,-186.9797571,0.00054794,2]
[313338236,1707168660500,-500.0,0.00054794,2]
[313338237,1707168660511,-500.0,0.00054794,30]
[313338238,1707168660520,-500.0,0.00054794,30]
[313338239,1707168660530,-500.0,0.00054794,30]
[313338240,1707168660540,-500.0,0.00054794,30]
[313338241,1707168660549,-500.0,0.00054794,30]
[313338242,1707168660559,-500.0,0.00054794,30]
[313338243,1707168660569,-500.0,0.00054794,30]
[313338244,1707168660579,-500.0,0.00054794,30]
[313338245,1707168660588,-500.0,0.00054794,30]
[313338246,1707168660597,-500.0,0.00054794,30]
[313338247,1707168660606,-335.62938629,0.00054794,30]
[313338248,1707168660615,-500.0,0.00054794,60]
[313338249,1707168660624,-510.37071087,0.00054794,60]
[313338250,1707168660633,-441.66925803,0.00054794,60]
[313338251,1707168660642,-500.0,0.00054794,60]
[313338252,1707168660652,-500.0,0.00054794,60]
[313338253,1707168660661,-500.0,0.00054794,60]
[313338254,1707168660671,-500.0,0.00054794,60]
[313338255,1707168660680,-500.0,0.00054794,60]
[313338256,1707168660689,-475.5849466,0.00054794,120]
[313338257,1707168660698,-560.38041435,0.00054794,120]
[313338258,1707168660708,-900.0,0.00054794,120]
[313338259,1707168660718,-167.71850116,0.00054794,120]
[313338260,1707168660729,-500.0,0.00054794,120]
[313338261,1707168660739,-500.0,0.00054794,120]
[313338262,1707168660747,-500.0,0.00054794,120]
[313338263,1707168660757,-500.0,0.00054794,120]
[313338264,1707168660765,-500.0,0.00054794,120]
[313338265,1707168660775,-502.49553,0.00054794,120]
[313338266,1707168660784,-550.0,0.00054794,7]
[313338267,1707168660793,-1059.8875,0.00054794,120]
[313338268,1707168660803,-368.63,0.00054794,120]
[313338269,1707168660812,-368.63,0.00054794,120]
[313338270,1707168660821,-368.63,0.00054794,120]
[313338271,1707168660830,-368.63,0.00054794,120]
[313338272,1707168660840,-368.63,0.00054794,120]
[313338273,1707168660849,-368.63,0.00054794,120]
[313338274,1707168660859,-368.63,0.00054794,120]
[313338275,1707168660868,-368.63,0.00054794,120]
[313338276,1707168660877,-368.63,0.00054794,120]
[313338277,1707168660888,-368.63,0.00054794,120]
[313338278,1707168660898,-368.63,0.00054794,120]
[313338279,1707168660908,-368.63,0.00054794,120]
[313338280,1707168660918,-368.63,0.00054794,120]
[313338281,1707168660928,-368.63,0.00054794,120]
[313338282,1707168660939,-368.63,0.00054794,120]
[313338283,1707168660948,-368.63,0.00054794,120]
[313338284,1707168660958,-368.63,0.00054794,120]
[313338285,1707168660968,-368.63,0.00054794,120]
[313338286,1707168660978,-368.63,0.00054794,120]
[313338287,1707168660987,-368.63,0.00054794,120]
[313338288,1707168660997,-368.63,0.00054794,120]
[313338289,1707168661007,-368.63,0.00054794,120]
[313338290,1707168661016,-368.63,0.00054794,120]
[313338291,1707168661026,-368.63544553,0.00054794,120]
[313338292,1707168661035,-500.0,0.00054794,120]
[313338293,1707168661044,-500.0,0.00054794,120]
[313338294,1707168661054,-500.0,0.00054794,120]
[313338295,1707168661063,-272.35301768,0.00054794,120]
[313338296,1707168661073,-408.56831944,0.00054794,60]
[313338297,1707168661083,-228.61246187,0.00054794,60]
[313338298,1707168661093,-342.6147983,0.00054794,60]
[313338299,1707168661103,-216.1194794,0.00054794,60]
[313338300,1707168661112,-500.0,0.00054794,120]
[313338301,1707168661121,-264.56561901,0.00054794,120]
[313338302,1707168661131,-671.47,0.00054795,30]
[313338303,1707168661140,-200.0,0.000548,120]
[313338304,1707168661150,-21394.78865992,0.000548,12]
[313338305,1707168661159,-8000.0,0.000548,120]
[313338306,1707168661170,-5108.37030168,0.0005487,120]
[313338307,1707168661179,-800.0,0.00054872,120]
[313338308,1707168661189,-3993.6,0.00054876,117]
[313338309,1707168661198,-251.0,0.00054894,28]
[313338310,1707168661208,-298109.16466446,0.000549,120]
[313338311,1707168661218,-154.0,0.000549,120]
[313338312,1707168661232,-881.2432266,0.000549,34]
[313338313,1707168661241,-15091.2452,0.0005497,14]
[313338314,1707168661250,-859.53236318,0.0005498,15]
[313338315,1707168661259,-200.0,0.00054987,88]
[313338316,1707168661270,-200.0,0.00054987,97]
[313338317,1707168661279,-1000.0,0.00054999,120]
[313338318,1707168661289,-431.23635213,0.00054999,40]
[313338319,1707168661300,-200.0,0.00054999,120]
[313338320,1707168661310,-5000.0,0.00055,60]
[313338321,1707168661319,-155.0,0.00055,4]
[313338322,1707168661328,-155.57480577,0.00055,4]
[313338323,1707168661337,-150.45368739,0.00055,120]
[313338324,1707168661347,-1000.0,0.00055,120]
[313338325,1707168661356,-1000.0,0.00055,120]
[313338326,1707168661365,-1000.0,0.00055,120]
[313338327,1707168661374,-1000.0,0.00055,30]
[313338328,1707168661384,-76000.0,0.00055,60]
[313338329,1707168661393,-1878.71052374,0.00055,30]
[313338330,1707168661402,-212.82092669,0.00055,55]
[313338331,1707168661411,-10000.0,0.00055,120]
[313338332,1707168661420,-165.0,0.00055,120]
[313338333,1707168661429,-77204.98234553,0.00055,30]
[313338334,1707168661445,-38666.40814135,0.00055,30]
[313338335,1707168661454,-198.75456435,0.00055,120]
[313338336,1707168661463,-245064.5762346,0.00055,10]
[313338337,1707168661475,-44432.76650502,0.00055,10]
[313338338,1707168661486,-134329.29844163,0.00055,10]
[313338339,1707168661498,-4910.15990042,0.00055,10]
[313338340,1707168661509,-2530.05024149,0.00055,10]
[313338341,1707168661521,-500.0,0.00055,10]
[313338342,1707168661533,-1470.445,0.00055,10]
[313338343,1707168661545,-615.575,0.00055,10]
[313338344,1707168661561,-563.25561443,0.000469,2]
[313338345,1707168661570,-1870.53815802,0.00055,10]
[313338346,1707168661582,-2490.53561742,0.00055,10]
[313338347,1707168661635,-975.445154,0.00047671,31]
[313338348,1707168661647,-353.704846,0.00047671,31]
[313338349,1707168661656,-543.14305423,0.00048219,31]
[313338350,1707168661669,-355.38054239,0.00048219,31]
[313338351,1707168661681,-430.62640338,0.00048219,31]
[313338352,1707168661691,-419.72429252,0.00048767,31]
[313338353,1707168661704,-508.76,0.00048767,31]
[313338354,1707168661716,-400.66570748,0.00048767,31]
[313338355,1707168661726,-1329.15,0.00049315,31]
[313338356,1707168661735,-678.22730652,0.00049863,31]
[313338357,1707168661747,-650.92269348,0.00049863,31]
[313338358,1707168661756,-500.0,0.00049999,120]
[313338359,1707168661766,-500.0,0.00049999,120]
[313338360,1707168661775,-582.85296546,0.00049999,120]
[313338361,1707168661784,-21749.60591112,0.00055,10]
[313338362,1707168661801,-419.10287483,0.0005041,31]
[313338363,1707168661812,-332.28537817,0.0005041,31]
[313338364,1707168661824,-577.761747,0.0005041,31]
[313338365,1707168661833,-437954.0717081,0.00055,10]
[313338366,1707168661845,-1904.7512084,0.00055,10]
[313338367,1707168661920,-532.46306892,0.000229,2]
[313338368,1707168661929,-786.0,0.000379,5]
[313338369,1707168661939,-194.67924866,0.000498,2]
[313338370,1707168661948,-1329.15,0.00050958,31]
[313338371,1707168661958,-1329.15,0.00051506,31]
[313338372,1707168661967,-1329.15,0.00052054,31]
[313338373,1707168661977,-1329.15,0.00052602,31]
[313338374,1707168661986,-1329.15,0.0005315,31]
[313338375,1707168661996,-1329.31434561,0.00053698,31]
[313338376,1707168662005,-11755.69633681,0.00055,10]
[313338377,1707168662428,-16313.932808,0.00055,10]
[313338378,1707168877142,156.56736622,0.00022465,2]
[313338379,1707169276308,33481.62634379,0.00022501,2]
[313338380,1707169294577,1006.08960501,0.00022501,2]
[313338381,1707169301245,544.90427787,0.00022501,2]
[313338382,1707169302444,191.59775398,0.00022501,2]
[313338383,1707169305584,388.45514903,0.00022501,2]
[313338384,1707169307653,197.49122111,0.00022501,2]
[313338385,1707169310374,172.54144566,0.00022501,2]
[313338386,1707169313688,249.72606267,0.00022501,2]
[313338387,1707169320706,413.63226986,0.00022501,2]
[313338388,1707169354296,1954.2238064,0.00022501,2]
[313338389,1707169427731,156.22119169,0.00022464,2]
[313338390,1707169603085,-234.45594829,0.00022502,2]
[313338408,1707169831535,-63.71804415,0.00022502,2]
[313338409,1707169831545,-230.26204204,0.00022502,2]
[313338410,1707169831553,-187.619999,0.00022502,2]
[313338411,1707169831562,-2476.48068399,0.00022564,2]
[313338412,1707169831574,-365.35210606,0.00022564,2]
[313338413,1707169831587,-1175.3,0.00022564,2]
[313338414,1707169831602,-2445.71753618,0.00022564,2]
[313338415,1707169831611,-150.0,0.00022564,2]
[313338416,1707169831622,-881.7444,0.00022565,2]
[313338417,1707169831631,-321.1767,0.00022565,2]
[313338418,1707169831640,-1000.0,0.00022565,2]
[313338419,1707169831649,-210.0,0.0002482,2]
[313338420,1707169831660,-155.0,0.0003,2]
[313338421,1707169831670,-738.76743162,0.0003142,4]
[313338422,1707169831679,-1635.0,0.000323,2]
[313338423,1707169831688,-1368.25,0.000323,2]
[313338424,1707169831697,-205.0,0.00032878,2]
[313338425,1707169831706,-499.99,0.00032878,2]
[313338426,1707169831714,-566.6956742,0.00032899,4]
[313338427,1707169831723,-1006.08960501,0.00033268,2]
[313338428,1707169831733,-161.09,0.0003452,2]
[313338429,1707169831742,-150.0,0.00034548,10]
[313338430,1707169831751,-296.11088142,0.00035908,4]
[313338431,1707169831760,-1942.0,0.00036064,2]
[313338432,1707169831769,-236.0,0.00036064,2]
[313338433,1707169831778,-1001.0,0.00036064,2]
[313338434,1707169831787,-596.0,0.00036064,2]
[313338435,1707169831796,-428.0,0.00036064,2]
[313338436,1707169831806,-320.0,0.00036064,2]
[313338437,1707169831815,-859.0,0.00036064,2]
[313338439,1707169831824,-150.0,0.00036064,2]
[313338441,1707169831833,-1138.0,0.00036064,2]
[313338443,1707169831842,-206.599,0.00036064,2]
[313338445,1707169831851,-150.0,0.00036064,2]
[313338447,1707169831860,-168.563,0.00036064,2]
[313338449,1707169831869,-240.391,0.00036064,2]
[313338451,1707169831878,-200.0,0.00036064,2]
[313338453,1707169831887,-150.98,0.00036064,2]
[313338454,1707169831896,-151.086,0.00036064,2]
[313338456,1707169831906,-292.024,0.00036064,2]
[313338458,1707169831915,-211.24,0.00036064,2]
[313338459,1707169831924,-250.0,0.00036174,2]
[313338460,1707169831934,-158.06,0.00036452,2]
[313338461,1707169831946,-11250.9757439,0.00036956,2]
[313338462,1707169831956,-252.11426329,0.00036964,4]
[313338463,1707169831965,-190.05493274,0.00036964,4]
[313338464,1707169831976,-384.17819269,0.00036964,4]
[313338465,1707169831986,-235.74926497,0.00036964,4]
[313338466,1707169831995,-543.44462476,0.00036964,4]
[313338467,1707169832004,-172.75365474,0.00036964,4]
[313338468,1707169832013,-463.77441241,0.00036964,4]
[313338469,1707169832022,-410.80992128,0.00036964,2]
[313338470,1707169832031,-687.74630896,0.00036964,4]
[313338471,1707169832040,-652.54549347,0.00036965,4]
[313338472,1707169832050,-732.09718473,0.00036965,4]
[313338473,1707169832059,-202.67833655,0.00036965,4]
[313338474,1707169832073,-2382.5,0.00036965,4]
[313338475,1707169832085,-1919.19045969,0.00036965,4]
[313338476,1707169832094,-1178.98373347,0.00036965,4]
[313338477,1707169832104,-2630.3674757,0.00036965,2]
[313338478,1707169832113,-525.70051931,0.00036965,4]
[313338479,1707169832122,-1045.21408325,0.00036965,4]
[313338480,1707169832132,-503.23980836,0.00036966,4]
[313338481,1707169832141,-24435.9577797,0.00036966,4]
[313338482,1707169832151,-300.66287612,0.00036967,15]
[313338483,1707169832162,-1783.59213871,0.00036967,15]
[313338484,1707169832174,-1046.96253148,0.00036967,15]
[313338485,1707169832186,-12049.02547238,0.00036967,15]
[313338486,1707169832195,-3965.83848863,0.00036967,15]
[313338487,1707169832204,-6169.98053776,0.00036967,15]
[313338488,1707169832213,-20024.2869062,0.00037897,2]
[313338489,1707169832229,-679.59866919,0.00037897,2]
[313338491,1707169837515,-155.0,0.00037896,4]
[313338492,1707169837525,-793.19036636,0.00037897,2]
[313338493,1707169837578,-19860.95425825,0.00037897,2]
[313338494,1707169837587,-3126.62522492,0.00037997,4]
[313338495,1707169837597,-1000.0,0.000384,2]
[313338496,1707169837606,-2478.53279229,0.00038797,4]
[313338497,1707169837617,-250.0,0.00038999,2]
[313338498,1707169837626,-10000.0,0.00039733,35]
[313338499,1707169837635,-164.9,0.00039787,2]
[313338500,1707169837645,-763.332209,0.00039899,4]
[313338501,1707169837656,-303.34283144,0.00039899,2]
[313338502,1707169837666,-250.0,0.00039942,111]
[313338503,1707169837675,-1795.82,0.00039999,5]
[313338504,1707169837685,-1810.13,0.00039999,5]
[313338505,1707169837694,-8457.25633301,0.00039999,10]
[313338506,1707169837703,-32342.0,0.0004,4]
[313338507,1707169837712,-150.0,0.00040076,2]
[313338508,1707169837722,-1000.0,0.000411,2]
[313338509,1707169837731,-200.0,0.00041613,2]
[313338510,1707169837740,-235.42,0.00041994,2]
[313338511,1707169837750,-1500.0,0.000422,38]
[313338512,1707169837759,-235.42,0.00043638,2]
[313338513,1707169837768,-1000.0,0.000438,2]
[313338514,1707169837778,-1478.63,0.00043836,15]
[313338515,1707169837787,-807.4482805,0.00044,120]
[313338516,1707169837796,-156.22119161,0.00044088,2]
[313338517,1707169837806,-150.0,0.00044886,30]
[313338518,1707169837815,-362.07711819,0.00045,4]
[313338519,1707169837824,-161.09,0.00045273,2]
[313338520,1707169837833,-235.42,0.00045282,2]
[313338521,1707169837842,-313.30002386,0.00045477,2]
[313338522,1707169837851,-1000.0,0.00046102,2]
[313338523,1707169837860,-1588.2231406,0.00046367,5]
[313338524,1707169837869,-714.70041327,0.00046367,5]
[313338525,1707169837878,-298.2005133,0.00046367,4]
[313338526,1707169837887,-1592.58472839,0.00046367,5]
[313338527,1707169837896,-1504.27164672,0.00046367,5]
[313338528,1707169837905,-513.77075651,0.00046367,5]
[313338529,1707169837914,-413.91202807,0.00046367,5]
[313338530,1707169837923,-224.36748425,0.00046367,5]
[313338531,1707169837932,-205.0,0.00046439,31]
[313338532,1707169837941,-1000.0,0.000466,2]
[313338533,1707169837950,-200.0,0.00046884,10]
[313338534,1707169837959,-235.42,0.00046925,2]
[313338535,1707169837969,-1000.0,0.000471,30]
[313338536,1707169837977,-167.0,0.00047382,2]
[313338537,1707169837986,-1478.63,0.00047572,15]
[313338538,1707169837995,-156.22119161,0.00047692,2]
[313338539,1707169838005,-235.42,0.00048569,2]
[313338540,1707169838014,-174.0,0.00048679,28]
[313338541,1707169838024,-1000.0,0.000493,2]
[313338542,1707169838033,-151.15186373,0.00049301,2]
[313338543,1707169838043,-800.0,0.00049315,30]
[313338544,1707169838053,-174.0,0.00049715,28]
[313338545,1707169838063,-2398.0,0.0004989,2]
[313338546,1707169838072,-178.0,0.0004989,2]
[313338547,1707169838082,-9755.426,0.000499,2]
[313338548,1707169838092,-7118.4551,0.000499,2]
[313338549,1707169838101,-8175.0,0.0005,10]
[313338550,1707169838111,-2964.75430104,0.0005,4]
[313338551,1707169838121,-2810.2109882,0.0005,10]
[313338552,1707169838130,-7877.60387408,0.0005,4]
[313338553,1707169838139,-270.0615337,0.0005,4]
[313338554,1707169838148,-155.0,0.0005,4]
[313338555,1707169838157,-2500.0,0.0005,120]
[313338556,1707169838167,-622.27782309,0.0005,30]
[313338557,1707169838178,-2006.88930206,0.0005,5]
[313338558,1707169838187,-164.0,0.0005,30]
[313338559,1707169838197,-188.0,0.0005,30]
[313338560,1707169838206,-2000.0,0.0005015,8]
[313338561,1707169838215,-243.83607126,0.000502,120]
[313338562,1707169838225,-243.83607109,0.000502,120]
[313338563,1707169838234,-243.83607109,0.000502,120]
[313338564,1707169838243,-243.83607109,0.000502,120]
[313338565,1707169838253,-243.83607109,0.000502,120]
[313338566,1707169838262,-243.83607109,0.000502,120]
[313338567,1707169838272,-243.83607109,0.000502,120]
[313338568,1707169838282,-243.83607109,0.000502,120]